bitfinex/quotes_ETHUSD_20250507
["timestamp","ask_amount","ask_price","bid_price","bid_amount"]
[1746585945404,0.88585157,1829.0,1828.7,5.46824519]
[1746585945709,0.50762911,1828.9,1828.8,0.48830103]
[1746585946671,0.50762911,1828.9,1828.6,5.46847974]
[1746585946876,6.28557185,1828.8,1828.7,0.48843862]
[1746585947077,7.77130781,1828.8,1828.4,11.02715118]
[1746585947284,7.77130781,1828.8,1828.5,0.48717346]
[1746585947488,0.50762911,1828.7,1828.5,0.48717346]
[1746585948008,0.50762911,1828.6,1828.5,5.95613688]
[1746585949706,0.50762911,1828.6,1828.5,5.98347113]
[1746585949911,0.50762911,1828.6,1828.5,7.68453336]
[1746585950080,3.88855532,1829.0,1828.7,5.46828384]
[1746585950281,3.88855532,1829.0,1828.6,5.46863634]
[1746585950282,3.88855018,1829.0,1828.8,0.48735304]
[1746585950589,0.50734224,1828.9,1828.6,5.46863634]
[1746585951321,0.50734224,1828.8,1828.6,5.46863634]
[1746585951912,0.50734224,1828.7,1828.6,5.46863634]
[1746585955595,9.03444692,1828.7,1828.3,5.46940917]
[1746585955794,5.01624883,1828.7,1828.4,5.46911967]
[1746585955991,5.01624883,1828.7,1828.3,5.4693943]
[1746585955992,10.55313695,1828.7,1828.3,5.4693943]
[1746585956191,0.50734224,1828.6,1828.3,5.4693943]
[1746585956608,0.50734224,1828.5,1828.3,5.4693943]
[1746585957117,10.04579471,1828.7,1828.4,5.46926274]
[1746585957118,2.20456555,1828.7,1828.4,5.46926274]
[1746585957429,0.7543,1828.7,1828.4,5.46926274]
[1746585957727,0.7543,1829.3,1828.9,5.46755066]
[1746585957898,6.22089159,1829.3,1828.9,5.46755066]
[1746585958083,5.97466566,1829.2,1828.8,5.46789763]
[1746585958284,0.7543,1829.0,1828.8,5.46788962]
[1746585958604,0.50766855,1828.9,1828.8,5.46788962]
[1746585959400,0.50766855,1828.9,1828.7,5.46836435]
[1746585959967,0.50758151,1828.8,1828.7,5.46836435]
[1746585961407,0.50758151,1828.8,1828.7,5.95538129]
[1746585961926,0.50758151,1828.8,1828.7,0.48701694]
[1746585962229,0.50758151,1828.8,1828.6,5.4686337]
[1746585962527,0.50758151,1828.8,1828.7,0.48701694]
[1746585962824,6.22182943,1829.0,1828.6,5.4686337]
[1746585963025,0.62218294,1828.9,1828.7,0.48701694]
[1746585963395,0.62218294,1828.9,1828.6,5.4686337]
[1746585963608,0.62218294,1828.9,1828.8,0.48687935]
[1746585963804,1.13026274,1828.9,1828.7,5.95533222]
[1746585964006,1.13026274,1828.9,1828.8,0.48687935]
[1746585964211,0.5080798,1828.9,1828.8,0.48687935]
[1746585965435,0.5080798,1828.9,1828.8,5.98226341]
[1746585966128,0.5080798,1828.9,1828.8,5.95494584]
[1746585966819,3.7933,1829.2,1829.0,5.4674208]
[1746585967131,3.7933,1829.2,1829.1,0.48646664]
[1746585967997,4.30120444,1829.2,1829.1,0.48646664]
[1746585968204,1.30120444,1829.2,1829.1,0.48646664]
[1746585968628,1.30120444,1829.2,1828.9,5.46764553]
[1746585968936,0.50790444,1829.1,1829.0,0.4866042]
[1746585970231,0.50790444,1829.1,1829.0,5.95407276]
[1746585970529,0.50790444,1829.1,1829.0,5.98136304]
[1746585972604,5.557,1829.6,1829.3,5.46640947]
[1746585972837,11.02268155,1829.6,1829.3,5.49368311]
[1746585972997,0.50755744,1829.5,1829.4,0.48315145]
[1746585974009,0.50755744,1829.5,1829.3,0.02727366]
[1746585974214,12.20070971,1829.6,1829.4,0.48315145]
[1746585974647,0.50710906,1829.5,1829.4,0.48315145]
[1746585976917,0.50710906,1829.5,1829.4,5.94942454]
[1746585977815,5.557,1829.6,1829.4,5.94942454]
[1746585978349,5.557,1829.6,1829.4,5.97669125]
[1746585978530,0.7576,1829.7,1829.4,5.94942454]
[1746585978736,5.46525384,1829.8,1829.5,5.46595591]
[1746585978942,0.50649826,1829.7,1829.6,0.48056732]
[1746585979756,0.50649826,1829.7,1829.6,5.97349749]
[1746585979938,22.01634104,1830.2,1829.6,5.97349749]
[1746585979939,0.7913,1830.1,1829.6,0.50782194]
[1746585980146,0.7913,1830.1,1829.8,5.46485427]
[1746585980322,0.7913,1830.1,1829.9,0.4768394]
[1746585982482,11.71217487,1830.1,1829.9,0.4768394]
[1746585982817,11.71217487,1830.1,1829.7,5.4651777]
[1746585983022,11.71217487,1830.1,1830.0,0.4765836]
[1746585983223,11.71217487,1830.1,1829.7,10.93035818]
[1746585983540,3.09564104,1830.1,1829.8,5.49230751]
[1746585983737,3.09564104,1830.1,1829.9,0.47672101]
[1746585984124,0.7913,1830.1,1829.9,0.47672101]
[1746585984954,0.7913,1830.1,1829.9,5.9413696]
[1746585985179,5.556,1830.2,1829.9,11.40596675]
[1746585985475,5.556,1830.2,1829.9,11.40586953]
[1746585985764,6.28535177,1830.5,1830.1,5.46418228]
[1746585985925,11.90864707,1830.5,1830.2,0.47335005]
[1746585986137,11.84035177,1830.5,1830.2,0.47335005]
[1746585986348,0.5052718,1830.4,1830.3,5.49079545]
[1746585986646,0.5052718,1830.4,1830.3,5.96400813]
[1746585986852,7.76688091,1830.7,1830.3,5.96400813]
[1746585987074,7.76688091,1830.7,1830.3,5.93679788]
[1746585987272,6.27029234,1830.6,1830.3,0.47321268]
[1746585987442,2.30434104,1830.5,1830.3,0.47321268]
[1746585987647,7.76747941,1830.5,1830.3,0.47321268]
[1746585987848,5.46342351,1830.4,1830.1,0.02720627]
[1746585988154,5.46393191,1830.2,1830.0,6.04]
[1746585988350,7.7680667,1830.3,1830.0,6.04]
[1746585988888,5.46372566,1830.3,1830.0,6.04]
[1746585989038,7.19017168,1830.3,1830.0,6.06721807]
[1746585989343,9.49451272,1830.3,1830.0,6.04]
[1746585989638,9.49451272,1830.3,1830.0,6.06721809]
[1746585989865,5.46372566,1830.3,1830.0,11.53169021]
[1746585990063,5.46372566,1830.3,1830.0,11.50447212]
[1746585991077,5.46372566,1830.3,1829.9,5.46468317]
[1746585991243,0.8206,1830.1,1829.8,5.46492573]
[1746585991448,0.8206,1830.1,1830.0,0.47155467]
[1746585991672,0.8206,1830.1,1829.9,0.46678136]
[1746585991855,0.8206,1830.1,1830.0,0.46664395]
[1746585992176,0.8206,1830.1,1829.8,5.46507796]
[1746585992521,0.8206,1830.1,1829.5,6.104]
[1746585992522,9.10552902,1830.0,1829.9,0.46678136]
[1746585992694,9.1738425,1830.0,1829.9,0.46678136]
[1746585992894,5.46493453,1829.9,1829.5,5.46584194]
[1746585993048,5.53324826,1829.9,1829.5,5.46584194]
[1746585993249,5.53324826,1829.9,1829.6,0.4679034]
[1746585993892,5.53324827,1829.9,1829.6,0.4679034]
[1746585994195,14.15465474,1830.0,1829.6,0.49515449]
[1746585994396,5.46483103,1829.9,1829.6,0.49515449]
[1746585996991,5.46483103,1829.9,1829.6,0.4679034]
[1746585997361,5.5331448,1829.9,1829.6,0.4679034]
[1746585998097,5.46483103,1829.9,1829.6,0.4679034]
[1746585998259,5.46483103,1829.9,1829.6,5.9335569]
[1746585998560,5.46483103,1829.9,1829.6,5.96080806]
[1746585999283,14.1547865,1830.0,1829.6,5.96080806]
[1746585999488,0.50586217,1829.9,1829.6,5.96080806]
[1746585999662,19.61951472,1830.0,1829.6,5.96080806]
[1746586000061,19.61951472,1830.0,1829.6,0.49515456]
[1746586000062,5.46478702,1829.9,1829.6,0.49515456]
[1746586000274,5.46478702,1829.9,1829.6,0.4679034]
[1746586000475,0.506113,1829.8,1829.6,0.4679034]
[1746586001175,5.46478702,1829.9,1829.6,0.4679034]
[1746586001491,5.5331008,1829.9,1829.6,0.4679034]
[1746586001699,5.46521208,1829.8,1829.6,0.4679034]
[1746586001898,5.46521208,1829.8,1829.4,10.93215863]
[1746586002500,5.46521208,1829.8,1829.5,5.93399056]
[1746586003193,1.27000413,1829.7,1829.5,0.46804088]
[1746586003498,6.73547082,1829.7,1829.5,0.46804088]
[1746586003697,5.46567555,1829.6,1829.5,0.46804088]
[1746586003997,5.46567555,1829.6,1829.3,11.50654656]
[1746586003998,5.46628884,1829.4,1829.1,11.02093817]
[1746586004365,5.46624706,1829.5,1829.1,11.02093817]
[1746586004366,5.46624706,1829.5,1829.1,11.02097356]
[1746586004914,0.50656544,1829.4,1829.1,11.02097356]
[1746586005267,0.50656544,1829.4,1829.1,16.48794933]
[1746586005469,5.46624706,1829.5,1829.1,12.66976849]
[1746586006400,5.46624706,1829.5,1829.2,0.47413245]
[1746586006701,0.50655021,1829.4,1829.1,12.66976849]
[1746586006867,0.50655021,1829.4,1829.3,0.47399493]
[1746586007067,5.46624706,1829.5,1829.2,0.47413245]
[1746586007268,5.46624706,1829.5,1829.3,0.47399493]
[1746586007603,5.46624706,1829.5,1829.1,12.66976849]
[1746586007791,5.46624706,1829.5,1829.2,0.47413245]
[1746586007991,0.5064745,1829.4,1829.1,12.66976849]
[1746586008163,0.5064745,1829.4,1829.2,0.47413245]
[1746586008367,0.5064745,1829.4,1829.1,12.66976849]
[1746586008698,5.46624706,1829.5,1829.1,12.66976849]
[1746586008901,5.46624706,1829.5,1829.2,0.47413245]
[1746586009203,11.01983168,1829.6,1829.2,5.49414872]
[1746586009405,0.50616347,1829.5,1829.3,0.47399493]
[1746586009797,5.46599737,1829.5,1829.3,0.47399493]
[1746586010894,11.01983168,1829.6,1829.3,0.47399493]
[1746586011092,0.50623929,1829.5,1829.3,0.47399493]
[1746586011481,5.97222356,1829.5,1829.3,0.47399493]
[1746586011672,6.22177309,1829.4,1829.3,0.47399493]
[1746586012074,6.79629477,1829.4,1829.0,5.46726877]
[1746586012288,6.79629477,1829.4,1829.3,0.47399493]
[1746586012490,6.79629477,1829.4,1829.0,5.46726877]
[1746586012688,6.29010494,1829.4,1829.3,0.47399493]
[1746586012979,6.22177309,1829.4,1829.0,5.46726877]
[1746586013292,6.79622255,1829.4,1829.1,0.47426998]
[1746586013489,6.72789068,1829.4,1829.1,0.47426998]
[1746586013805,0.50611759,1829.3,1829.1,0.50155736]
[1746586014009,0.50611759,1829.3,1829.1,0.47426998]
[1746586014176,6.22177309,1829.4,1829.1,0.47426998]
[1746586014377,6.29010498,1829.4,1829.1,0.47426998]
[1746586014884,11.75660551,1829.4,1829.1,0.47426998]
[1746586015077,0.50592772,1829.3,1829.1,0.47426998]
[1746586015376,0.50592772,1829.3,1829.1,5.94141762]
[1746586015591,0.7555,1829.4,1829.1,5.94141762]
[1746586016632,6.22193351,1829.4,1829.1,0.47426998]
[1746586017134,5.97263276,1829.3,1829.1,0.47426998]
[1746586017431,0.50590864,1829.2,1828.9,5.4676337]
[1746586017933,5.97284611,1829.2,1828.9,5.4676337]
[1746586018136,6.04118218,1829.2,1828.8,5.46789001]
[1746586018432,1.33020864,1829.1,1828.9,5.46761059]
[1746586018600,0.50590864,1829.1,1828.9,5.46761059]
[1746586019414,0.50590864,1829.1,1828.8,5.46791837]
[1746586019615,7.50734974,1829.1,1828.7,5.468215]
[1746586019932,0.50590864,1829.0,1828.7,5.49553164]
[1746586020120,0.7698,1828.9,1828.6,5.46853605]
[1746586020431,6.9120418,1828.9,1828.5,9.12342955]
[1746586020600,4.51247385,1828.9,1828.6,5.46859042]
[1746586020802,9.91195055,1828.9,1828.5,9.12342955]
[1746586021003,0.50668264,1828.8,1828.5,9.1507589]
[1746586021235,0.50668264,1828.8,1828.5,9.15058411]
[1746586021532,0.50668264,1828.8,1828.6,0.44357464]
[1746586021734,9.98030341,1828.9,1828.6,0.44357464]
[1746586021944,3.0,1829.0,1828.7,5.49569484]
[1746586022154,3.0,1829.0,1828.8,5.46805557]
[1746586022447,6.3101,1829.1,1828.9,5.46776751]
[1746586022624,0.82344313,1829.0,1828.8,0.44329943]
[1746586022824,0.82344313,1829.0,1828.8,5.46805477]
[1746586023025,0.50665265,1828.9,1828.7,5.46822157]
[1746586023236,0.50665265,1828.9,1828.6,5.46851153]
[1746586023606,0.7551,1829.0,1828.7,5.46835647]
[1746586024241,5.555,1829.1,1829.0,5.46746856]
[1746586024568,6.06162319,1829.1,1828.9,5.46754707]
[1746586024927,5.555,1829.1,1828.9,5.46754707]
[1746586025627,5.555,1829.1,1828.9,5.49486933]
[1746586025815,5.555,1829.1,1828.8,5.46787945]
[1746586026010,5.555,1829.1,1828.8,5.46785564]
[1746586026212,5.555,1829.1,1828.9,5.46765737]
[1746586027120,5.555,1829.1,1828.9,5.49496022]
[1746586027359,5.555,1829.1,1828.9,5.46765737]
[1746586027830,5.555,1829.1,1828.8,0.54678556]
[1746586027831,5.53525057,1829.2,1828.8,5.46795514]
[1746586028022,0.50689777,1829.1,1828.8,5.46795514]
[1746586028449,11.02091095,1829.2,1828.8,5.46795514]
[1746586029051,17.90218466,1829.2,1828.8,5.46795514]
[1746586029261,5.46756601,1829.0,1828.6,5.46848426]
[1746586029414,0.50694474,1828.9,1828.6,5.46848426]
[1746586029932,5.46779047,1828.9,1828.5,5.46879118]
[1746586030143,6.25965301,1828.8,1828.4,17.06307255]
[1746586030344,0.7915,1828.8,1828.5,5.46895279]
[1746586030543,6.25913809,1829.0,1828.6,0.02732511]
[1746586030848,0.50695661,1828.9,1828.6,5.49588775]
[1746586031051,0.50695661,1828.9,1828.6,5.49581003]
[1746586031225,0.50695661,1828.8,1828.7,5.46831995]
[1746586031747,0.50695661,1828.8,1828.6,5.49579748]
[1746586032043,0.50695661,1828.9,1828.6,5.49579748]
[1746586032248,0.50695661,1828.9,1828.7,5.46835153]
[1746586032548,0.50695661,1829.0,1828.7,5.46835153]
[1746586032756,0.50695661,1828.9,1828.7,5.46818289]
[1746586032910,0.50695661,1828.9,1828.8,5.49528366]
[1746586033524,5.555,1829.3,1829.0,5.46742649]
[1746586033525,0.50695661,1829.2,1829.0,5.46742649]
[1746586034051,0.50695661,1829.2,1828.9,5.46757562]
[1746586034230,0.50695661,1829.1,1828.9,5.46757562]
[1746586034416,0.50695661,1829.1,1828.9,5.4675454]
[1746586034616,0.50695661,1829.2,1828.9,10.93508887]
[1746586034817,0.50695661,1829.2,1828.9,12.58403327]
[1746586035018,5.46732628,1829.1,1828.8,5.554]
[1746586035217,6.24922628,1829.1,1828.8,5.554]
[1746586035432,0.50695661,1829.0,1828.8,5.554]
[1746586035942,0.50695661,1828.9,1828.7,5.49545556]
[1746586036141,0.50695661,1829.0,1828.7,5.49545556]
[1746586036554,6.65707052,1829.0,1828.8,0.44442051]
[1746586036865,0.50695661,1828.9,1828.6,5.46851191]
[1746586037263,6.21846098,1829.0,1828.6,5.46851191]
[1746586037460,5.46822248,1828.8,1828.4,5.46905016]
[1746586037617,6.23852248,1828.8,1828.4,10.93814683]
[1746586037819,0.7703,1828.8,1828.5,10.93768069]
[1746586038065,0.50809856,1828.7,1828.5,0.0273283]
[1746586038224,0.50809856,1828.7,1828.5,5.49612279]
[1746586038548,6.23849992,1828.8,1828.4,10.93819059]
[1746586038742,6.23849992,1828.8,1828.4,10.93814446]
[1746586039039,6.23849992,1828.8,1828.4,5.46905179]
[1746586039351,5.46837769,1828.7,1828.3,10.9387916]
[1746586039557,5.97652375,1828.7,1828.2,11.02370069]
[1746586039755,5.97652375,1828.7,1828.3,5.4694581]
[1746586040265,0.50804789,1828.6,1828.2,11.02366984]
[1746586040451,5.97673545,1828.6,1828.2,11.02366984]
[1746586040761,5.97673545,1828.6,1828.2,16.49329991]
[1746586040923,0.50804789,1828.5,1828.3,5.49668522]
[1746586041122,0.50804789,1828.5,1828.3,10.96603483]
[1746586041363,5.46847586,1828.7,1828.3,10.96602399]
[1746586041665,0.50795876,1828.6,1828.3,5.49668223]
[1746586042228,0.50795876,1828.5,1828.3,5.49668223]
[1746586042728,5.46847586,1828.7,1828.3,5.49668223]
[1746586042928,6.63917355,1828.7,1828.3,5.49668223]
[1746586043129,0.50768537,1828.6,1828.3,5.49668223]
[1746586043530,0.50768537,1828.5,1828.3,5.49668223]
[1746586043942,6.63925543,1828.7,1828.3,5.49668223]
[1746586044256,12.10785418,1828.7,1828.3,5.49668223]
[1746586044439,0.50755081,1828.6,1828.3,5.49668223]
[1746586044756,0.50755081,1828.6,1828.5,5.46896363]
[1746586044958,6.3787,1829.1,1828.8,5.46799874]
[1746586045758,0.50768104,1829.0,1828.7,5.4955305]
[1746586045960,0.50768104,1829.0,1828.8,5.4679129]
[1746586046163,0.50768104,1828.9,1828.8,5.4679129]
[1746586047461,0.50768104,1828.9,1828.6,11.02248764]
[1746586047664,0.8047,1828.8,1828.5,11.0228222]
[1746586047863,1.31238104,1828.8,1828.6,5.46850735]
[1746586048051,0.50768104,1828.8,1828.7,5.4683655]
[1746586048757,0.50768104,1828.9,1828.7,5.4683655]
[1746586048959,0.50768104,1828.9,1828.7,5.46817146]
[1746586049469,0.8047,1829.0,1828.7,5.46817146]
[1746586050175,8.30060694,1829.0,1828.6,5.46856589]
[1746586050347,8.30060694,1829.0,1828.6,10.93703958]
[1746586050542,0.50817414,1828.9,1828.6,10.93703958]
[1746586050947,0.50817414,1828.9,1828.7,5.46835123]
[1746586051268,0.50817414,1828.8,1828.7,5.46835123]
[1746586052277,0.50817414,1828.8,1828.6,5.46846202]
[1746586053074,6.34053334,1829.0,1828.6,5.46846202]
[1746586053782,0.50821113,1828.9,1828.6,5.46846202]
[1746586053985,0.50821113,1828.8,1828.6,5.46846202]
[1746586054194,5.4684545,1828.7,1828.4,6.04]
[1746586054352,0.50821113,1828.6,1828.4,5.46914721]
[1746586054790,0.50821113,1828.6,1828.3,7.12140164]
[1746586054983,0.50821113,1828.5,1828.3,7.12140164]
[1746586055187,0.50821113,1828.5,1828.4,5.46924985]
[1746586055356,0.50821113,1828.5,1828.4,5.49658785]
[1746586055856,0.8295,1828.7,1828.4,5.49658785]
[1746586056090,0.8295,1828.7,1828.5,5.46896056]
[1746586056276,0.5081668,1828.6,1828.5,5.46896056]
[1746586058162,0.5081668,1828.6,1828.4,5.49658785]
[1746586058373,0.5081668,1828.6,1828.4,5.46924985]
[1746586058658,0.5081668,1828.6,1828.4,5.49658711]
[1746586058860,5.46837424,1828.7,1828.4,5.49658711]
[1746586059059,6.36040331,1828.8,1828.4,5.49658711]
[1746586059273,0.50827149,1828.7,1828.3,11.02238736]
[1746586059459,0.50827149,1828.7,1828.3,11.02238378]
[1746586059679,0.50827149,1828.6,1828.4,5.46911591]
[1746586059998,0.50827149,1828.5,1828.3,11.02238378]
[1746586060198,1.33677149,1828.5,1828.2,11.0226751]
[1746586060412,0.8285,1828.5,1828.2,11.0226751]
[1746586060703,6.29759751,1828.5,1828.1,11.50997021]
[1746586060898,7.54258507,1828.5,1828.1,16.97995324]
[1746586061068,0.50814646,1828.4,1828.1,5.46993323]
[1746586061269,5.46974679,1828.3,1827.9,9.12517927]
[1746586061484,5.46974679,1828.3,1827.9,14.67817927]
[1746586061883,0.50814646,1828.2,1827.9,14.67817927]
[1746586062428,5.46974679,1828.3,1827.9,14.67817927]
[1746586063189,0.50819283,1828.2,1827.9,20.14862801]
[1746586063499,0.50819283,1828.1,1827.9,9.12520946]
[1746586063677,0.50819283,1828.1,1827.9,14.59581608]
[1746586063997,0.50819283,1828.1,1827.9,14.59563722]
[1746586064192,0.50819283,1828.1,1828.0,5.47045951]
[1746586064390,0.8054,1828.2,1828.0,5.47045951]
[1746586066209,0.8054,1828.4,1828.2,5.46976433]
[1746586066505,3.0,1828.5,1828.3,0.45473058]
[1746586067081,8.46901983,1828.5,1828.3,0.45473058]
[1746586067280,0.50762095,1828.4,1828.3,0.45473058]
[1746586067982,0.50762095,1828.4,1828.1,5.49733699]
[1746586068209,0.50762095,1828.4,1828.3,0.45473058]
[1746586068413,0.50762095,1828.3,1828.2,0.45486825]
[1746586068617,0.50762095,1828.3,1828.1,5.49733699]
[1746586068805,8.5373779,1828.5,1828.1,5.49733699]
[1746586069009,0.7768,1828.4,1828.1,5.46997867]
[1746586069629,0.50748254,1828.3,1828.1,5.46997867]
[1746586070005,0.50748254,1828.3,1828.0,5.47033452]
[1746586070216,6.24612722,1828.4,1828.0,10.94060584]
[1746586070424,7.71764132,1828.4,1828.1,5.47015662]
[1746586070642,7.71764132,1828.4,1828.0,5.47027132]
[1746586070823,2.2483141,1828.4,1828.1,5.47013518]
[1746586071025,2.2483141,1828.4,1828.1,5.49749806]
[1746586071325,2.2483141,1828.4,1828.1,5.47013518]
[1746586071624,0.50743572,1828.3,1828.1,5.47014192]
[1746586071822,0.50743572,1828.3,1828.0,5.47027132]
[1746586072027,0.7691,1828.2,1827.9,5.47056472]
[1746586072434,0.7691,1828.2,1827.9,10.94111481]
[1746586072651,0.7691,1828.2,1827.9,5.47055009]
[1746586072817,0.7691,1828.2,1827.9,5.47054176]
[1746586073727,0.7691,1828.2,1827.9,5.47075879]
[1746586073922,0.7691,1828.2,1827.9,5.47058052]
[1746586074224,0.50727755,1828.1,1827.9,5.47058052]
[1746586074729,6.23898993,1828.2,1827.8,5.47094459]
[1746586074937,1.94679837,1828.2,1827.9,5.47065698]
[1746586075293,7.41669887,1828.2,1827.9,5.47065698]
[1746586075725,0.50722713,1828.1,1827.9,5.47075666]
[1746586075942,0.50722713,1828.1,1827.8,5.47088487]
[1746586076241,7.48507866,1828.2,1827.8,5.47088487]
[1746586076394,7.48507866,1828.2,1827.9,5.47072823]
[1746586076735,1.94679837,1828.2,1827.9,5.47072823]
[1746586076930,0.50733779,1828.1,1827.9,5.47072823]
[1746586077441,0.50733779,1828.1,1828.0,5.49784273]
[1746586077934,0.8009,1828.4,1828.2,5.46978699]
[1746586078147,6.3549,1828.6,1828.3,5.46956188]
[1746586078339,0.50755639,1828.5,1828.3,5.46937833]
[1746586078539,0.50755639,1828.5,1828.3,5.46954268]
[1746586078850,0.50755639,1828.5,1828.2,5.46967269]
[1746586078851,11.82359533,1828.6,1828.2,5.4696962]
[1746586079011,13.55280072,1828.6,1828.2,10.93935432]
[1746586079212,13.55280072,1828.6,1828.2,5.49700918]
[1746586079425,13.55280072,1828.6,1828.2,5.46965812]
[1746586079845,0.5078357,1828.5,1828.2,5.46965812]
[1746586080019,0.5078357,1828.5,1828.1,11.02299659]
[1746586080332,5.97681477,1828.5,1828.1,11.02299659]
[1746586080539,0.5078357,1828.5,1828.2,5.46971731]
[1746586080832,0.5078357,1828.4,1828.1,11.02296416]
[1746586081045,0.5078357,1828.4,1828.2,5.46984222]
[1746586081223,0.5078357,1828.4,1828.1,11.02296416]
[1746586081426,0.5078357,1828.4,1828.3,0.45478971]
[1746586081645,0.5078357,1828.4,1828.2,5.92478775]
[1746586081952,0.5078357,1828.4,1828.3,0.45478971]
[1746586082840,0.5078357,1828.4,1828.3,5.92435159]
[1746586083949,0.5078357,1828.4,1828.3,0.45478971]
[1746586084240,0.5078357,1828.4,1828.3,5.92435159]
[1746586084539,0.5078357,1828.4,1828.3,6.54415465]
[1746586086115,9.24046898,1828.9,1828.6,5.4686309]
[1746586086316,3.7727,1828.9,1828.6,5.49595668]
[1746586086516,3.7727,1828.9,1828.7,0.4536487]
[1746586086919,0.50802887,1828.8,1828.6,5.49595668]
[1746586087453,0.50802887,1828.8,1828.6,5.49583852]
[1746586087774,0.50802887,1828.7,1828.6,5.49583852]
[1746586087977,9.24051655,1828.9,1828.3,6.06200718]
[1746586087978,0.50802887,1828.8,1828.3,0.5924453]
[1746586088269,6.28485975,1828.7,1828.3,5.46936469]
[1746586088587,6.04516479,1828.6,1828.2,5.46970512]
[1746586088772,5.46930026,1828.4,1828.1,5.551]
[1746586089067,0.50802887,1828.3,1828.1,11.02112723]
[1746586089276,0.8269,1828.2,1828.1,3.65448034]
[1746586089566,1.33492887,1828.2,1828.1,3.65448034]
[1746586089870,7.49207767,1828.2,1828.1,3.65448034]
[1746586090058,13.11145529,1828.2,1828.1,3.65448034]
[1746586090372,18.34741871,1828.2,1828.1,3.65448034]
[1746586091868,16.04307767,1828.2,1828.1,3.65448034]
[1746586092347,5.47036748,1828.1,1827.7,5.47114667]
[1746586092549,5.97857433,1828.0,1827.6,5.47165439]
[1746586092869,6.0469567,1828.0,1827.6,7.72510754]
[1746586093445,5.97879768,1827.9,1827.6,2.25345315]
[1746586093638,0.50802887,1827.9,1827.6,7.72510506]
[1746586094076,6.27538413,1827.9,1827.5,5.47182138]
[1746586094367,6.27538413,1827.9,1827.5,11.02282138]
[1746586094567,5.53955354,1827.8,1827.4,5.47211245]
[1746586094766,6.04664772,1827.8,1827.4,11.02311245]
[1746586094972,5.97825877,1827.8,1827.4,11.0230261]
[1746586095172,0.50708002,1827.7,1827.4,11.0230261]
[1746586095577,5.47117875,1827.8,1827.4,11.0230261]
[1746586096269,5.53956952,1827.8,1827.5,0.44933806]
[1746586096460,5.47117875,1827.8,1827.5,0.44933806]
[1746586096875,6.27550249,1827.9,1827.6,5.47161509]
[1746586096876,0.8046,1827.9,1827.6,5.47161509]
[1746586097064,3.8046,1827.9,1827.7,0.44906252]
[1746586097253,9.27538323,1827.9,1827.5,5.47176099]
[1746586097455,0.50674604,1827.8,1827.6,0.44920028]
[1746586097648,5.97784011,1827.8,1827.5,5.47195045]
[1746586097852,9.27538323,1827.9,1827.6,0.44920028]
[1746586098163,16.28937901,1827.9,1827.6,0.44920028]
[1746586098377,5.47115193,1827.8,1827.6,0.44920028]
[1746586098777,10.8185271,1827.9,1827.5,5.49935358]
[1746586098988,0.50660779,1827.8,1827.7,0.44906252]
[1746586099150,0.50660779,1827.8,1827.6,0.44920028]
[1746586099351,0.50660779,1827.8,1827.7,0.44906252]
[1746586099352,5.97770698,1827.8,1827.7,0.44906252]
[1746586099547,5.97770698,1827.8,1827.5,5.47194838]
[1746586099772,5.97770698,1827.8,1827.7,0.44906252]
[1746586099963,5.97770698,1827.8,1827.6,0.44920028]
[1746586100280,5.97770698,1827.8,1827.7,0.44906252]
[1746586100486,0.50660779,1827.8,1827.5,5.47194892]
[1746586100666,0.50660779,1827.8,1827.6,0.44920028]
[1746586101057,10.75015405,1827.9,1827.6,0.44920028]
[1746586101252,5.47107878,1827.8,1827.6,0.44920028]
[1746586101451,7.10004115,1827.8,1827.6,0.44920028]
[1746586101672,7.10004115,1827.8,1827.4,5.47213962]
[1746586101890,7.10004115,1827.8,1827.5,0.44933806]
[1746586102910,7.16843394,1827.8,1827.5,0.44933806]
[1746586103415,5.97788257,1827.7,1827.5,0.44933806]
[1746586103590,0.50647576,1827.7,1827.5,0.44933806]
[1746586103778,9.34397652,1827.9,1827.5,0.44933806]
[1746586104089,0.8046,1827.9,1827.6,5.49885131]
[1746586104291,6.27536103,1827.9,1827.7,0.46158234]
[1746586104504,7.82517789,1827.9,1827.5,5.47174956]
[1746586104706,10.82517789,1827.9,1827.8,0.46144459]
[1746586104893,11.33156358,1827.9,1827.5,10.94349962]
[1746586105203,11.26317713,1827.9,1827.6,0.46172011]
[1746586105408,10.75679144,1827.9,1827.6,0.46172011]
[1746586105711,10.82518129,1827.9,1827.6,5.93336474]
[1746586106199,5.35442026,1827.9,1827.6,5.93336474]
[1746586106369,3.8046,1827.9,1827.7,5.4713183]
[1746586106697,3.8046,1827.9,1827.8,0.46144459]
[1746586106897,3.8046,1827.9,1827.6,5.47164463]
[1746586107089,3.8046,1827.9,1827.7,0.46158234]
[1746586107296,3.8046,1827.9,1827.6,5.47164463]
[1746586107609,3.79687166,1827.9,1827.7,0.46158234]
[1746586107904,9.26764577,1827.9,1827.6,5.47164463]
[1746586108092,9.26764577,1827.9,1827.8,0.46144459]
[1746586108295,3.79687166,1827.9,1827.6,10.94308699]
[1746586108497,3.79687166,1827.9,1827.7,0.46158234]
[1746586108707,3.79687166,1827.9,1827.6,5.47144236]
[1746586108915,3.79687166,1827.9,1827.7,0.46158234]
[1746586109264,3.79687166,1827.9,1827.6,5.47144236]
[1746586109468,3.79687166,1827.9,1827.7,0.46158234]
[1746586109664,3.79687166,1827.9,1827.6,5.47144236]
[1746586109865,9.26763433,1827.9,1827.7,0.46158234]
[1746586110174,9.26763433,1827.9,1827.6,5.47144236]
[1746586110385,3.79687166,1827.9,1827.8,0.46144459]
[1746586110692,4.30328937,1827.9,1827.8,0.46144459]
[1746586110893,4.30328937,1827.9,1827.6,10.94292956]
[1746586111125,3.79687166,1827.9,1827.7,0.46158234]
[1746586111421,3.79687166,1827.9,1827.6,5.47144236]
[1746586111922,9.26764803,1827.9,1827.7,0.46158234]
[1746586112124,9.26764803,1827.9,1827.6,5.47144236]
[1746586112325,9.26764803,1827.9,1827.8,0.46144459]
[1746586112622,9.26764803,1827.9,1827.6,5.47144236]
[1746586112823,9.33603791,1827.9,1827.8,0.46144459]
[1746586113024,9.84289721,1827.9,1827.8,0.46144459]
[1746586113188,9.84289721,1827.9,1827.6,5.47144236]
[1746586113382,9.77450733,1827.9,1827.8,0.46144459]
[1746586113599,9.26764803,1827.9,1827.6,5.47144236]
[1746586113797,9.26764803,1827.9,1827.8,0.46144459]
[1746586114122,0.50709764,1827.9,1827.8,0.46144459]
[1746586114324,0.50709764,1827.9,1827.8,5.93250269]
[1746586114623,3.0,1828.0,1827.8,5.93250269]
[1746586115183,3.0,1828.0,1827.8,0.46144459]
[1746586116421,3.0,1828.0,1827.8,5.95987256]
[1746586116616,0.50773536,1827.9,1827.8,5.95987256]
[1746586116788,0.50773536,1827.9,1827.8,7.10298164]
[1746586118591,6.35877915,1828.4,1828.1,5.47014855]
[1746586118829,0.8211,1828.4,1828.1,5.47014855]
[1746586118985,0.50886498,1828.3,1828.2,0.45823501]
[1746586120693,0.50886498,1828.3,1828.2,5.46986106]
[1746586120894,0.50886498,1828.3,1828.2,0.45823501]
[1746586121394,0.50886498,1828.3,1828.2,5.92809607]